Workbook

Sheet Ark1
A1: Plassering | B1: Rad 1 - arkivbokser | C1: Rad 1 - arkivbokser | D1: Rad 1 - arkivbokser | E1: Rad 1 - arkivbokser | F1: Rad 1 - permer | G1: Rad 1 - hefter | H1: Rad 1 - protokoller | I1: Rad 1 - kopipapiresker | J1: Rad 1 - kopipapiresker | K1: Rad 2 - arkivbokser | L1: Rad 2 - arkivbokser | M1: Rad 2 - permer | N1: Rad 2 - permer | O1: Rad 2 - hefter | P1: Rad 2 - protokoller | Q1: Rad 2 - kopipapiresker | R1: Rad 3 - arkivbokser | S1: Rad 3 - arkivbokser | T1: Rad 3 - permer | U1: Rad 3 - permer | V1: Rad 3 - permer | W1: Rad 3 - permer | X1: Rad 3 - permer | Y1: Rad 3 - hefter | Z1: Rad 3 - protokoller | AA1: Rad 4 - arkivbokser | AB1: Rad 4 - arkivbokser | AC1: Rad 4 - arkivbokser | AD1: Rad 4 - arkivbokser | AE1: Rad 4 - permer | AF1: Rad 4 - hefter | AG1: Rad 4 - protokoller | AH1: Rad 4 - kopipapiresker | AI1: Rad 4 - kopipapiresker | AJ1: Over hyllene | AK1: Type arkiv | AL1: Antall bokser | AM1: Antall permer | AN1: Antall hefter | AO1: Antall protokoller | AP1: Kopipapiresker | AQ1: Over hyllene | AR1: Deponeres snarest | AS1: Deponeres 2028 | AT1: Deponeres 2029 | AU1: Deponeres 2047 | AV1: Deponeres 2048 | AW1: Deponeres ikke
A2: Reol 1 | AJ2: 14 kopipapiresker med journalkort rådmann | AK2: Saksarkiv 1977-1991
A3: 1. hyllemeter | B3: 9 | K3: 6 | R3: 5
A4: 2. hyllemeter | B4: 9 | K4: 6 | R4: 9
A5: 3. hyllemeter | B5: 9 | K5: 6 | R5: 8 | AK5: Saksarkiv 1977-1991
A6: 4. hyllemeter | B6: 8 | K6: 7 | AK6: Saksarkiv 1977-1991
A7: 5. hyllemeter | B7: 6 | K7: 8 | AK7: Saksarkiv 1977-1991
A8: 6. hyllemeter | B8: 6 | K8: 8 | AK8: Saksarkiv 1977-1991
A9: Sum MORS | B9: =SUM(B3:B8) -> 47 | K9: =SUM(K3:K8) -> 41 | R9: =SUM(R3:R8) -> 22 | AK9: MORS | AL9: =+B9+K9+R9 -> 110 | AW9: =+AL9 -> 110
A10: Sum | F10: 0 | G10: 0 | T10: 0 | Y10: 0 | Z10: 0 | AJ10: 14 kopipapiresker med journalkort rådmann | AK10: Saksarkiv 1977-1991 | AL10: =+B10+K10+R10 -> 0 | AM10: =+F10+M10+T10 -> 0 | AN10: =+G10+O10+Y10 -> 0 | AO10: 0 | AQ10: 14
A11: Reol 2 | C11: Epikriser
A12: 1. hyllemeter | C12: 9 | K12: 8 | R12: 8 | AK12: Saksarkiv 1977-1991
A13: 2. hyllemeter | C13: 9 | K13: 8 | R13: 8 | AK13: Saksarkiv 1977-1991
A14: 3. hyllemeter | C14: 9 | K14: 8 | R14: 8 | AK14: Saksarkiv 1977-1991
A15: 4. hyllemeter | C15: 1 | K15: 8 | R15: 8 | AK15: Saksarkiv 1977-1991
A16: 5. hyllemeter | B16: 5 | K16: 8 | R16: 9 | AK16: Saksarkiv 1977-1991
A17: 6. hyllemeter | B17: 8 | K17: 8 | R17: 8 | AK17: Saksarkiv 1977-1991
A18: Sum | B18: =SUM(B12:B17) -> 13 | C18: =SUM(C12:C17) -> 28 | K18: =SUM(K12:K17) -> 48 | R18: =SUM(R12:R17) -> 49 | AL18: =+B18+K18+R18 -> 110 | AM18: =+F18+M18+T18 -> 0 | AN18: =+G18+O18+Y18 -> 0 | AO18: 0 | AQ18: 0 | AW18: 28
A19: Reol 3 | AJ19: 2 kopipapiresker med personkort styrer, råd og utvalg
A20: 1. hyllemeter | B20: 9 | F20: 2 | K20: 5 | R20: 8 | AK20: Saksarkiv 1977-1991
A21: 2. hyllemeter | B21: 8 | K21: Tomt | R21: 8 | AK21: Saksarkiv 1977-1991
A22: 3. hyllemeter | B22: 8 | K22: Tomt | R22: 8 | T22: 3 | AK22: Saksarkiv 1977-1991
A23: 4. hyllemeter | B23: 8 | K23: 6 | R23: 8 | AK23: Saksarkiv 1977-1991
A24: 5. hyllemeter | B24: 7 | K24: 8 | R24: 8 | AK24: Saksarkiv 1977-1991
A25: 6. hyllemeter | B25: 8 | K25: 8 | R25: 8 | AK25: Saksarkiv 1977-1991
A26: Sum | B26: =SUM(B20:B25) -> 48 | F26: =SUM(F20:F25) -> 2 | G26: =SUM(G20:G25) -> 0 | H26: 0 | K26: =SUM(K20:K25) -> 27 | M26: =SUM(M20:M25) -> 0 | O26: =SUM(O20:O25) -> 0 | P26: 0 | R26: 48 | T26: =SUM(T20:T25) -> 3 | Y26: =SUM(Y20:Y25) -> 0 | AJ26: 2 kopipapiresker med personkort styrer, råd og utvalg | AL26: =+B26+K26+R26 -> 123 | AM26: =+F26+T26 -> 5 | AN26: 0 | AQ26: 2
A27: Reol 4
A28: 1. hyllemeter | B28: 3 | F28: 8 | G28: 9 | K28: 8 | R28: 9 | AK28: Saksarkiv 1977-1991
A29: 2. hyllemeter | B29: 8 | K29: 9 | R29: 5 | T29: 3 | Y29: 5 | Z29: 1 | AK29: Saksarkiv 1977-1991
A30: 3. hyllemeter | B30: 8 | K30: 8 | R30: 8 | AK30: Saksarkiv 1977-1991
A31: 4. hyllemeter | B31: 8 | K31: 4 | M31: 1 | R31: 3 | T31: 5 | Z31: 8 | AK31: Saksarkiv 1977-1991
A32: 5. hyllemeter | B32: 7 | K32: 8 | R32: 6 | AK32: Saksarkiv 1977-1991
A33: 6. hyllemeter | B33: 8 | K33: 7 | R33: Tomt | AK33: Saksarkiv 1977-1991
A34: Sum | B34: =SUM(B28:B33) -> 42 | F34: =SUM(F28:F33) -> 8 | G34: 9 | H34: 0 | K34: =SUM(K28:K33) -> 44 | M34: =SUM(M28:M33) -> 1 | O34: =SUM(O28:O33) -> 0 | R34: 31 | T34: =SUM(T28:T33) -> 8 | Y34: =SUM(Y28:Y33) -> 5 | Z34: =SUM(Z28:Z33) -> 9 | AL34: =+B34+K34+R34 -> 117 | AM34: =+F34+M34+T34 -> 17 | AN34: =+G34+O34+Y34 -> 14 | AO34: =+Z34 -> 9
AK35: Sum Saksarkiv 1977-1991 | AL35: =SUM(AL18:AL34) -> 350 | AM35: =SUM(AM2:AM34) -> 22 | AN35: 14 | AO35: 9 | AQ35: 16 | AR35: =+AL35 -> 350
A36: Reol 5
A37: 1. hyllemeter | B37: 8 | K37: 8 | R37: 8 | AK37: Saksarkiv 1992-1995
A38: 2. hyllemeter | B38: 8 | K38: 8 | R38: 8 | AK38: Saksarkiv 1992-1995
A39: 3. hyllemeter | B39: 8 | K39: 8 | R39: 8 | AK39: Saksarkiv 1992-1995
A40: 4. hyllemeter | B40: 8 | K40: 8 | R40: 8 | AK40: Saksarkiv 1992-1995
A41: 5. hyllemeter | B41: 8 | K41: 8 | R41: 8 | AK41: Saksarkiv 1992-1995
A42: 6. hyllemeter | B42: 8 | K42: 8 | AK42: Saksarkiv 1992-1995
A43: Sum | B43: =SUM(B37:B42) -> 48 | F43: =SUM(F37:F42) -> 0 | G43: 0 | H43: 0 | K43: 48 | M43: 0 | O43: 0 | P43: 0 | R43: 40 | T43: 0 | Y43: 0 | Z43: 0 | AL43: =+B43+K43+R43 -> 136 | AM43: 0 | AN43: 0 | AO43: 0 | AQ43: 0
AK44: Sum Saksarkiv 1992-1995 | AL44: =+AL43 -> 136 | AM44: 0 | AN44: 0 | AO44: 0 | AQ44: 0 | AR44: =+AL44 -> 136
A45: Reol 6
A46: Bokser fra reol 3 vs | B46: 8 | AK46: Saksarkiv 1996-1999
A47: 1. hyllemeter | B47: 8 | K47: 7 | R47: 8 | AK47: Saksarkiv 1996-1999
A48: 2. hyllemeter | B48: 8 | K48: 7 | R48: 8 | AK48: Saksarkiv 1996-1999
A49: 3. hyllemeter | B49: 8 | K49: 8 | R49: 8 | T49: 1 | AK49: Saksarkiv 1996-1999
A50: 4. hyllemeter | B50: 8 | K50: 9 | R50: 9 | AK50: Saksarkiv 1996-1999
A51: 5. hyllemeter | B51: 8 | K51: 9 | R51: 8 | AK51: Saksarkiv 1996-1999
A52: 6. hyllemeter | B52: 9 | K52: 9 | R52: 9 | AK52: Saksarkiv 1996-1999
A53: Bokser fra reol 4 hs | B53: 2 | AK53: Saksarkiv 1996-1999
A54: Sum | B54: =SUM(B46:B53) -> 59 | K54: =SUM(K47:K53) -> 49 | R54: =SUM(R47:R53) -> 50 | T54: =SUM(T49:T53) -> 1 | AL54: =+B54+K54+R54 -> 158 | AM54: 1 | AN54: 0 | AO54: 0 | AQ54: 0
AK55: Sum Saksarkiv 1996-1999 | AL55: =+AL54 -> 158 | AM55: =+AM54 -> 1 | AN55: =+AN54 -> 0 | AO55: =+AO54 -> 0 | AQ55: =+AQ54 -> 0 | AR55: =+AL55 -> 158
A56: Reol 7
A57: 1. hyllemeter | B57: 7 | K57: 8 | R57: 5 | T57: 7 | AK57: Saksarkiv 2000-2004
A58: 2. hyllemeter | B58: 8 | F58: 1 | K58: 7 | R58: 8 | AK58: Saksarkiv 2000-2004
A59: 3. hyllemeter | B59: 9 | K59: 8 | R59: 8 | AK59: Saksarkiv 2000-2004
A60: 4. hyllemeter | B60: 8 | K60: 8 | R60: 8 | AK60: Saksarkiv 2000-2004
A61: 5. hyllemeter | B61: 6 | K61: 8 | R61: 8 | AK61: Saksarkiv 2000-2004
A62: 6. hyllemeter | B62: 8 | K62: 8 | R62: 8 | AK62: Saksarkiv 2000-2004
A63: Bokser fra reol 4 hs | B63: 43 | AK63: Saksarkiv 2000-2004
A64: Sum | B64: =SUM(B57:B63) -> 89 | F64: =SUM(F58:F62) -> 1 | G64: 0 | H64: 0 | K64: =SUM(K57:K62) -> 47 | M64: 0 | O64: 0 | P64: 0 | R64: =SUM(R57:R62) -> 45 | T64: =SUM(T57:T62) -> 7 | Y64: 0 | Z64: 0 | AL64: =+B64+K64+R64 -> 181 | AM64: =+F64+M64+T64 -> 8 | AN64: 0 | AO64: 0 | AQ64: 0
AK65: Sum Saksarkiv 2000-2004 | AL65: =+AL64 -> 181 | AM65: =+AM64 -> 8 | AN65: 0 | AO65: 0 | AQ65: 0 | AT65: =+AL65 -> 181
AK66: Sum Saksarkiv Rådmannskontoret | AL66: =+AL10+AL18+AL26+AL34+AL44+AL55+AL65 -> 825 | AM66: =+AM10+AM18+AM26+AM34+AM44+AM55+AM65 -> 31 | AN66: =+AN10+AN18+AN26+AN34+AN44+AN55+AN65 -> 14 | AO66: 9 | AQ66: 16
A67: Reol 8
A68: 1. hyllemeter | B68: 1 | F68: 2 | M68: 12 | P68: 3 | R68: 6 | AK68: Husbanken bostøtte/etableringstilsk | AX68: Kasseres?
A69: 2. hyllemeter | K69: Tomt | M69: Tomt | O69: Tomt | P69: Tomt | R69: 10 | AK69: Husbanken bostøtte/etableringstilsk | AX69: Kasseres?
A70: 3. hyllemeter | K70: 3 | R70: 9 | AK70: Husbanken bostøtte/etableringstilsk | AX70: Kasseres?
A71: 4. hyllemeter | K71: 5 | R71: 4 | AK71: Husbanken bostøtte/etableringstilsk | AX71: Kasseres?
A72: 5. hyllemeter | K72: 8 | R72: 8 | AK72: Husbanken bostøtte/etableringstilsk | AX72: Kasseres?
A73: 6. hyllemeter | K73: 7 | R73: 5 | AK73: Husbanken bostøtte/etableringstilsk | AX73: Kasseres?
A74: Sum | B74: =SUM(B68:B73) -> 1 | F74: =SUM(F68:F73) -> 2 | G74: =SUM(G68:G73) -> 0 | H74: 0 | K74: 23 | M74: 12 | O74: 0 | P74: 3 | R74: 42 | T74: 0 | Y74: 0 | Z74: 0 | AL74: =+B74+K74+R74 -> 66 | AM74: =+F74+M74+T74 -> 14 | AN74: 0 | AO74: 0 | AQ74: 0 | AW74: =+AL74 -> 66
A75: Reol 9 | AJ75: 5 kopipapiresker med journalkort teknisk
A76: 1. hyllemeter | B76: 8 | K76: 7 | T76: 11 | AK76: Teknisk før 1992
A77: 2. hyllemeter | B77: 8 | K77: 7 | R77: 2 | T77: 3 | AK77: Teknisk før 1992
A78: 3. hyllemeter | B78: 8 | K78: 8 | R78: 1 | T78: 14 | AK78: Teknisk før 1992
A79: 4. hyllemeter | B79: 8 | K79: 8 | R79: 9 | AK79: Teknisk før 1992
A80: 5. hyllemeter | B80: 8 | K80: 3 | R80: Tomt | AK80: Teknisk før 1992
A81: 6. hyllemeter | B81: 1 | K81: Tomt | R81: 1 | AK81: Teknisk før 1992
A82: Sum | B82: =SUM(B76:B81) -> 41 | F82: =SUM(F76:F81) -> 0 | G82: 0 | H82: 0 | K82: 33 | M82: 0 | O82: 0 | P82: 0 | R82: 13 | T82: 28 | Y82: 0 | Z82: 0 | AJ82: 5 kopipapiresker med journalkort teknisk | AL82: =+B82+K82+R82 -> 87 | AM82: =+T82 -> 28 | AN82: 0 | AO82: 0 | AQ82: 5
A83: Reol 10
A84: 1. hyllemeter | F84: 10 | I84: 2 | K84: 7 | R84: 6 | T84: 3 | AK84: Teknisk før 1992
A85: 2. hyllemeter | B85: 8 | K85: 8 | R85: 7 | AK85: Teknisk før 1992
A86: 3. hyllemeter | B86: 8 | K86: 8 | R86: 8 | AK86: Teknisk før 1992
A87: 4. hyllemeter | B87: 8 | K87: 8 | R87: 5 | AK87: Teknisk før 1992
A88: 5. hyllemeter | B88: 6 | K88: 6 | R88: 8 | Y88: 1 | AK88: Teknisk før 1992
A89: 6. hyllemeter | B89: 7 | K89: 7 | R89: 8 | AK89: Teknisk før 1992
A90: Sum | B90: =SUM(B85:B89) -> 37 | F90: =SUM(F84:F89) -> 10 | G90: =SUM(G84:G89) -> 0 | H90: 0 | I90: 2 | K90: 44 | M90: 0 | O90: 0 | P90: 0 | R90: 42 | T90: 3 | Y90: 1 | Z90: 0 | AJ90: 0 | AL90: =+B90+K90+R90 -> 123 | AM90: =+F90+M90+T90 -> 13 | AN90: =+G90+O90+Y90 -> 1 | AO90: 0 | AP90: =+I90 -> 2 | AQ90: 0
A91: Reol 11
A92: 1. hyllemeter | F92: 13 | G92: 2 | M92: 14 | R92: 8 | AK92: Teknisk før 1992
A93: 2. hyllemeter | B93: 7 | F93: 1 | K93: 7 | R93: 9 | AK93: Teknisk før 1992
A94: 3. hyllemeter | B94: 8 | G94: 2 | K94: 5 | M94: 2 | R94: 7 | T94: 2 | AK94: Teknisk før 1992
A95: 4. hyllemeter | B95: 8 | K95: 6 | R95: 8 | AK95: Teknisk før 1992
A96: 5. hyllemeter | B96: 5 | F96: 1 | K96: 9 | R96: 8 | AK96: Teknisk før 1992
A97: 6. hyllemeter | B97: 8 | K97: 8 | R97: 8 | T97: 1 | AK97: Teknisk før 1992
A98: Sum | B98: =SUM(B93:B97) -> 36 | F98: =SUM(F92:F97) -> 15 | G98: =SUM(G92:G97) -> 4 | H98: 0 | I98: 0 | K98: 35 | M98: =SUM(M92:M97) -> 16 | O98: =SUM(O92:O97) -> 0 | P98: =SUM(P92:P97) -> 0 | R98: =SUM(R92:R97) -> 48 | T98: =SUM(T92:T97) -> 3 | Y98: =SUM(Y92:Y97) -> 0 | Z98: =SUM(Z92:Z97) -> 0 | AJ98: 0 | AL98: =+B98+K98+R98 -> 119 | AM98: =+F98+M98+T98 -> 34 | AN98: =+G98+O98+Y98 -> 4 | AO98: 0 | AP98: 0 | AQ98: 0
A99: Sum Teknisk før 1992 | AK99: Sum Teknisk før 1992 | AL99: =+AL82+AL101+AL90+AL98 -> 329 | AR99: =+AL99 -> 329
A100: Reol 12 | B100: 92-95 | F100: 92-95 | G100: 92-95 | H100: 92-95 | I100: 92-95 | K100: 92-95 | L100: 96-99 | M100: 92-95 | N100: 96-99 | O100: 92-95 | P100: 92-95 | R100: 96-99 | Y100: 96-99
A101: 1. hyllemeter | B101: 11 | K101: 11 | R101: 14 | AK101: Teknisk 1992-1995 og 1996-1999
A102: 2. hyllemeter | B102: 11 | K102: 12 | R102: 12 | AK102: Teknisk 1992-1995 og 1996-1999
A103: 3. hyllemeter | B103: 9 | K103: 7 | L103: 1 | R103: 11 | AK103: Teknisk 1992-1995 og 1996-1999
A104: 4. hyllemeter | B104: 10 | L104: 12 | R104: 11 | Y104: 1 | AK104: Teknisk 1992-1995 og 1996-1999
A105: 5. hyllemeter | B105: 11 | L105: 10 | N105: 2 | R105: 10 | AK105: Teknisk 1992-1995 og 1996-1999
A106: 6. hyllemeter | B106: 11 | L106: 11 | R106: 10 | AK106: Teknisk 1992-1995 og 1996-1999
A107: Sum 1992-1995 | B107: =SUM(B101:B106) -> 63 | F107: =SUM(F101:F106) -> 0 | G107: 0 | H107: 0 | I107: 0 | K107: 30 | M107: =SUM(M101:M106) -> 0 | O107: =SUM(O101:O106) -> 0 | P107: =SUM(P101:P106) -> 0 | T107: =SUM(T101:T106) -> 0 | Z107: =SUM(Z101:Z106) -> 0 | AJ107: 0 | AK107: Sum Teknisk 1992-1995 | AL107: =+B107+K107 -> 93 | AM107: 0 | AN107: 0 | AO107: 0 | AP107: 0 | AQ107: 0 | AR107: =+AL107 -> 93
A108: Sum 1996-1999 | B108: 0 | F108: 0 | G108: 0 | H108: 0 | I108: 0 | K108: 0 | L108: =SUM(L101:L106) -> 34 | M108: 0 | N108: =SUM(N101:N106) -> 2 | R108: =SUM(R101:R107) -> 68 | Y108: =SUM(Y101:Y107) -> 1 | AK108: Sum Teknisk 1996-1999 | AL108: =+L108+R108 -> 102 | AM108: =+N108 -> 2 | AN108: 1 | AO108: 0 | AP108: 0 | AQ108: 0 | AR108: =+AL108 -> 102
A109: Reol 13 | B109: 00-04 | K109: Reguleringsplaner | R109: Budsjett/regnskap | T109: Budsjett/regnskap
A110: 1. hyllemeter | B110: 16 | K110: Tomt | L110: Tomt | M110: Tomt | N110: Tomt | O110: Tomt | P110: Tomt | R110: 2 | T110: 3
A111: 2. hyllemeter | B111: 12 | K111: Tomt | L111: Tomt | M111: Tomt | N111: Tomt | O111: Tomt | P111: Tomt | R111: 6 | T111: 3
A112: 3. hyllemeter | B112: 11 | K112: 6 | R112: 5
A113: 4. hyllemeter | B113: 8 | K113: 1 | R113: Tomt | S113: Tomt
A114: 5. hyllemeter | B114: 8 | K114: 3 | R114: Tomt | S114: Tomt
A115: 6. hyllemeter | B115: 4 | K115: Tomt | L115: Tomt | M115: Tomt | N115: Tomt | O115: Tomt | P115: Tomt | R115: Tomt | S115: Tomt | T115: Tomt | U115: Tomt | V115: Tomt | W115: Tomt | X115: Tomt | Y115: Tomt | Z115: Tomt
A116: Sum 2000-2004 | B116: =SUM(B110:B115) -> 59 | AK116: Sum Teknisk 2000-2004 | AL116: =+B116 -> 59 | AT116: =+AL116 -> 59
A117: Sum Reguleringsplaner | K117: =SUM(K112:K116) -> 10 | AK117: Sum Reguleringsplaner | AL117: =+K117 -> 10 | AW117: =+AL117 -> 10
A118: Sum Budsjett/regnskap | R118: =SUM(R110:R112) -> 13 | T118: =SUM(T110:T112) -> 6 | AK118: Sum Budsjett/regnskap | AL118: =+R118 -> 13 | AM118: =+T118 -> 6 | AW118: =+AL118 -> 13
A119: Reol 14 | F119: Utsendte skriv | K119: Friluftsnemnda | M119: Utsendte skriv | N119: Avisutklipp | R119: Gravemelding | S119: Solgte festetomter | T119: Gravemelding | U119: Egenerklæring | V119: Kjøp eiendom | W119: Solgte festetomter | X119: Friluftsnemnda
A120: 1. hyllemeter | F120: 11 | M120: 12 | R120: 2 | T120: 3
A121: 2. hyllemeter | F121: 11 | N121: 14 | U121: 8
A122: 3. hyllemeter | F122: 12 | K122: 8 | V122: 12
A123: 4. hyllemeter | F123: 12 | K123: 8 | S123: 4 | W123: 2
A124: 5. hyllemeter | F124: 12 | K124: 7 | X124: 10
A125: 6. hyllemeter
A126: Sum Utsendte skriv | F126: =SUM(F120:F125) -> 58 | M126: =SUM(M120:M125) -> 12 | AK126: Sum Utsendte skriv | AM126: =+F126+M126 -> 70
A127: Sum Friluftsnemnda | K127: =SUM(K122:K126) -> 23 | X127: =SUM(X120:X124) -> 10 | AK127: Sum Friluftsnemnda | AL127: =+K127 -> 23 | AM127: 10 | AW127: =+AL127 -> 23
A128: Sum Avisutklipp | N128: =SUM(N120:N124) -> 14 | AK128: Sum Avisutklipp | AM128: =+N128 -> 14
A129: Sum Gravemelding | R129: =SUM(R120:R124) -> 2 | T129: =SUM(T120:T128) -> 3 | AK129: Sum Gravemelding | AL129: 2 | AM129: 3 | AW129: =+AL129 -> 2
A130: Sum Solgte festetomter | S130: =SUM(S123:S129) -> 4 | W130: =SUM(W123:W129) -> 2 | AK130: Sum Solgte festetomter | AL130: 4 | AM130: 2 | AW130: =+AL130 -> 4
A131: Sum Egenerklæring | U131: =SUM(U121:U130) -> 8 | AK131: Sum Egenerklæring | AM131: 8
A132: Sum Kjøp eiendom | V132: =SUM(V122:V131) -> 12 | AK132: Sum Kjøp eiendom | AM132: 12
A133: Reol 15 | AJ133: 21 arkivbokser
A134: 1. hyllemeter | B134: 7 | F134: 1 | M134: 13 | O134: 4 | T134: 15
A135: 2. hyllemeter | B135: 8 | K135: 8 | R135: 8
A136: 3. hyllemeter | B136: 8 | K136: 7 | R136: 1 | T136: 12 | Y136: 1 | Z136: 1
A137: 4. hyllemeter | B137: 8 | K137: 8 | R137: 8 | Y137: 1
A138: 5. hyllemeter | B138: 7 | K138: 7 | R138: 3 | T138: 8
A139: 6. hyllemeter | B139: 8 | G139: 1 | K139: 8 | R139: Tomt | S139: Tomt | T139: Tomt | U139: Tomt | V139: Tomt | W139: Tomt | X139: Tomt | Y139: Tomt | Z139: Tomt
A140: Sum Kommunale bygg | B140: =SUM(B134:B139) -> 46 | F140: =SUM(F134:F139) -> 1 | G140: 1 | H140: 0 | I140: 0 | K140: 38 | L140: 0 | M140: 13 | N140: 0 | O140: 4 | P140: 0 | R140: 20 | S140: 0 | T140: 35 | U140: 0 | V140: 0 | W140: 0 | X140: 0 | Y140: 2 | Z140: 1 | AJ140: 21 | AK140: Sum Kommunale bygg | AL140: =+B140+K140+R140+AJ140 -> 125 | AM140: =+F140+M140+T140 -> 49 | AN140: =+G140+O140+Y140 -> 7 | AO140: =+Z140 -> 1 | AP140: 0 | AQ140: 0 | AW140: =+AL140 -> 125
A141: Reol 16 | B141: NAV | K141: NAV | R141: NAV | S141: Verdal legesenter | AJ141: 4 arkivbokser avskjedssak
A142: 1. hyllemeter | B142: 9 | K142: 9 | R142: 9
A143: 2. hyllemeter | B143: 9 | K143: 9 | R143: 9
A144: 3. hyllemeter | B144: 9
A145: 4. hyllemeter | B145: 9 | K145: 9
A146: 5. hyllemeter | B146: 9
A147: 6. hyllemeter | B147: 9 | S147: 7
A148: Sum Klientarkiv NAV | B148: =SUM(B142:B147) -> 54 | K148: =SUM(K142:K147) -> 27 | R148: =SUM(R142:R147) -> 18 | AK148: Sum Klientarkiv NAV til deponering | AL148: =+B148+K148+R148 -> 99 | AR148: =+AL148 -> 99
A149: Avskjedssak | AJ149: 4 | AK149: Avskjedssak | AL149: 4 | AW149: =+AL149 -> 4
A150: Sum Klientarkiv V legesenter | S150: =+S147 -> 7 | AK150: Sum Klientarkiv Verdal legesenter 2023 | AL150: 7 | AV150: =+AL150 -> 7
A151: Reol 17 | B151: Verdal legesenter 2023 | D151: Verdal legesenter gml | AA151: Verdal legesenter gml
A152: 1. hyllemeter | B152: 8
A153: 2. hyllemeter | B153: 7
A154: 3. hyllemeter | B154: 8
A155: 4. hyllemeter | B155: 7
A156: 5. hyllemeter | B156: 8
A157: 6. hyllemeter | B157: 6 | AA157: 8
A158: Sum Verdal legesenter gml | AA158: =SUM(AA157) -> 8 | AK158: Sum Verdal legesenter | AL158: =+AA158 -> 8 | AW158: =+AL158 -> 8
A159: Sum V legesenter avsl 2023 | B159: =SUM(B152:B158) -> 44 | AK159: Sum Klientarkiv Verdal legesenter 2023 | AL159: =+B159 -> 44 | AV159: 44
A160: Reol 18
A161: 1. hyllemeter | H161: 13 | P161: 18 | Z161: 28 | AG161: 33
A162: 2. hyllemeter | H162: 26 | P162: 16 | Z162: 31 | AE162: 1 | AG162: 29
A163: 3. hyllemeter | H163: 20 | P163: 24 | Z163: 28 | AE163: 3 | AG163: 14
A164: 4. hyllemeter | H164: 39 | P164: 22 | Z164: 34 | AE164: 11 | AG164: 5
A165: 5. hyllemeter | H165: 12 | P165: 38 | Z165: 37 | AE165: 12
A166: Sum Politiske utvalg | B166: =SUM(B161:B165) -> 0 | D166: 0 | F166: 0 | G166: 0 | H166: =SUM(H161:H165) -> 110 | I166: =SUM(I161:I165) -> 0 | K166: 0 | L166: 0 | M166: 0 | N166: 0 | O166: 0 | P166: 118 | R166: 0 | S166: 0 | T166: 0 | U166: 0 | V166: 0 | W166: 0 | X166: 0 | Y166: 0 | Z166: 158 | AA166: 0 | AE166: 27 | AF166: 0 | AG166: 81 | AH166: 0 | AK166: Sum Politiske utvalg fra 1976 | AL166: 0 | AM166: =+AE166 -> 27 | AO166: =+H166+P166+Z166+AG166 -> 467 | AX166: ?
A167: Reol 19
A168: 1. hyllemeter | H168: 33 | P168: 31 | Z168: 9 | AF168: 1 | AG168: 11
A169: 2. hyllemeter | H169: 37 | P169: 32 | R169: Tomt | S169: Tomt | T169: Tomt | U169: Tomt | V169: Tomt | W169: Tomt | X169: Tomt | Y169: Tomt | Z169: Tomt | AE169: 14
A170: 3. hyllemeter | H170: 26 | P170: 28 | R170: Tomt | S170: Tomt | T170: Tomt | U170: Tomt | V170: Tomt | W170: Tomt | X170: Tomt | Y170: Tomt | Z170: Tomt | AE170: 6 | AF170: 4 | AG170: 1
A171: 4. hyllemeter | H171: 37 | P171: 25 | R171: Tomt | S171: Tomt | T171: Tomt | U171: Tomt | V171: Tomt | W171: Tomt | X171: Tomt | Y171: Tomt | Z171: Tomt | AE171: 6 | AG171: 3
A172: 5. hyllemeter | F172: 5 | H172: 13 | P172: 21 | R172: Tomt | S172: Tomt | T172: Tomt | U172: Tomt | V172: Tomt | W172: Tomt | X172: Tomt | Y172: Tomt | Z172: Tomt | AE172: 2
A173: Sum Politiske utvalg | B173: =SUM(B168:B172) -> 0 | D173: 0 | F173: 5 | G173: 0 | H173: =SUM(H168:H172) -> 146 | I173: =SUM(I168:I172) -> 0 | K173: 0 | L173: 0 | M173: 0 | N173: 0 | O173: 0 | P173: 137 | R173: 0 | S173: 0 | T173: 0 | U173: 0 | V173: 0 | W173: 0 | X173: 0 | Y173: 0 | Z173: 9 | AA173: 0 | AE173: 28 | AF173: 5 | AG173: 15 | AH173: 0 | AK173: Sum Politiske utvalg fra 1976 | AL173: 0 | AM173: =+F173+AE173 -> 33 | AN173: =+AF173 -> 5 | AO173: =+H173+P173+Z173+AG173 -> 307 | AP173: 0 | AQ173: 0
A174: Reol 20
A175: 1. hyllemeter | B175: 8 | K175: 8 | R175: 7 | AA175: 8
A176: 2. hyllemeter | B176: 7 | K176: 8 | R176: 9 | AA176: 6
A177: 3. hyllemeter | B177: 7 | K177: 8 | R177: 7 | AA177: 7
A178: 4. hyllemeter | B178: 7 | K178: 8 | R178: 8 | AA178: 8
A179: 5. hyllemeter | B179: 7 | K179: 8 | R179: 8 | AA179: 6
A180: 6. hyllemeter | B180: 8 | K180: 8 | R180: 8 | AA180: 8
A181: Sum Større eiendommer | B181: =SUM(B175:B180) -> 44 | D181: =SUM(D175:D180) -> 0 | F181: 0 | G181: 0 | H181: 0 | I181: 0 | K181: 48 | L181: 0 | M181: 0 | N181: 0 | O181: 0 | P181: 0 | R181: 47 | S181: 0 | T181: 0 | U181: 0 | V181: 0 | W181: 0 | X181: 0 | Y181: 0 | Z181: 0 | AA181: 43 | AE181: 0 | AF181: 0 | AG181: 0 | AH181: 0 | AJ181: 0 | AK181: Sum Større eiendommer byggesak | AL181: =+B181+K181+R181+AA181 -> 182 | AW181: =+AL181 -> 182
A182: Reol 21
A183: 1. hyllemeter | B183: 8 | K183: 8 | R183: 8 | AA183: 7
A184: 2. hyllemeter | B184: 7 | K184: 8 | R184: 8 | AA184: 8
A185: 3. hyllemeter | B185: Tomt | D185: Tomt | F185: Tomt | G185: Tomt | H185: Tomt | I185: Tomt | K185: 7 | R185: Tomt | S185: Tomt | T185: Tomt | U185: Tomt | V185: Tomt | W185: Tomt | X185: Tomt | Y185: Tomt | Z185: Tomt | AA185: 8
A186: 4. hyllemeter | B186: 7 | K186: 8 | R186: 8 | AA186: 9
A187: 5. hyllemeter | B187: 8 | K187: 8 | R187: 8 | AA187: 8
A188: 6. hyllemeter | B188: 2 | F188: 1 | G188: 4 | K188: 7 | R188: 8 | AA188: 7
A189: Sum Skannet byggesak | B189: =SUM(B183:B188) -> 32 | D189: =SUM(D183:D188) -> 0 | F189: 1 | G189: 4 | H189: 0 | I189: 0 | K189: 46 | L189: 0 | M189: 0 | N189: 0 | O189: 0 | P189: 0 | R189: 40 | S189: 0 | T189: 0 | U189: 0 | V189: 0 | W189: 0 | X189: 0 | Y189: 0 | Z189: 0 | AA189: =SUM(AA183:AA188) -> 47 | AE189: =SUM(AE183:AE188) -> 0 | AF189: =SUM(AF183:AF188) -> 0 | AG189: =SUM(AG183:AG188) -> 0 | AH189: =SUM(AH183:AH188) -> 0 | AJ189: =SUM(AJ183:AJ188) -> 0 | AK189: Sum Skannet byggesak | AL189: =+B189+K189+R189+AA189 -> 165 | AM189: =+F189 -> 1 | AN189: =+G189 -> 4 | AW189: =+AL189 -> 165
A190: Reol 22
A191: 1. hyllemeter | B191: 8 | K191: 8 | R191: 8 | AA191: 6 | AF191: 3
A192: 2. hyllemeter | B192: 8 | K192: 8 | R192: 8 | AA192: 8
A193: 3. hyllemeter | B193: 8 | K193: 8 | R193: 8 | AA193: 8
A194: 4. hyllemeter | B194: 8 | K194: 8 | R194: 8 | AA194: 8
A195: 5. hyllemeter | B195: 8 | K195: 8 | R195: 8 | AA195: 8
A196: 6. hyllemeter | B196: 8 | K196: 8 | R196: 8 | AA196: 3
A197: Sum Skannet byggesak | B197: =SUM(B191:B196) -> 48 | D197: =SUM(D191:D196) -> 0 | F197: 0 | G197: 0 | H197: 0 | I197: 0 | K197: 48 | L197: 0 | M197: 0 | N197: 0 | O197: 0 | P197: 0 | R197: 48 | S197: 0 | T197: 0 | U197: 0 | V197: 0 | W197: 0 | X197: 0 | Y197: 0 | Z197: 0 | AA197: 41 | AE197: 0 | AF197: 3 | AG197: 0 | AH197: 0 | AJ197: 0 | AK197: Sum Skannet byggesak | AL197: =+B197+K197+R197+AA197 -> 185 | AM197: 0 | AN197: 3 | AO197: 0 | AP197: 0 | AQ197: 0 | AW197: =+AL197 -> 185
A198: Reol 23
A199: 1. hyllemeter | B199: 7 | K199: 7 | R199: 6 | AA199: 8
A200: 2. hyllemeter | B200: 7 | K200: 7 | R200: 6 | AA200: 8
... 142 more rows
